[Event "FIDE U16 Olympiad_boards_1-80"]
[Site "Eindhoven, Netherlands"]
[Date "2023.08.14"]
[Round "2.43"]
[White "Rudzkis, Vilius"]
[Black "Fishchuk, Vladyslav"]
[Result "0-1"]
[TimeControl "2700+10"]
[WhiteElo "1835"]
[BlackElo "2053"]

1. d4 {[%clk 00:45:05]} {[%emt 00:00:13]} d5 {[%clk 00:45:14]} {[%emt
00:00:07]} 2. c4 {[%clk 00:45:12]} {[%emt 00:00:04]} e6 {[%clk 00:45:22]}
{[%emt 00:00:01]} 3. Nc3 {[%clk 00:45:16]} {[%emt 00:00:06]} c5 {[%clk
00:45:29]} {[%emt 00:00:03]} 4. cxd5 {[%clk 00:43:28]} {[%emt 00:01:58]} cxd4
{[%clk 00:45:31]} {[%emt 00:00:08]} 5. Qa4+ {[%clk 00:42:36]} {[%emt 00:01:01]}
Bd7 {[%clk 00:45:37]} {[%emt 00:00:04]} 6. Qxd4 {[%clk 00:42:43]} {[%emt
00:00:03]} exd5 {[%clk 00:45:46]} {[%emt 00:00:02]} 7. Nf3 {[%clk 00:41:07]}
{[%emt 00:01:45]} Nf6 {[%clk 00:45:39]} {[%emt 00:00:16]} 8. Bg5 {[%clk
00:40:54]} {[%emt 00:00:23]} Nc6 {[%clk 00:45:04]} {[%emt 00:00:45]} 9. Qd2
{[%clk 00:40:25]} {[%emt 00:00:38]} Be6 {[%clk 00:44:00]} {[%emt 00:01:15]} 10.
e3 {[%clk 00:39:55]} {[%emt 00:00:40]} h6 {[%clk 00:42:04]} {[%emt 00:02:06]}
11. Bxf6 {[%clk 00:36:05]} {[%emt 00:04:01]} Qxf6 {[%clk 00:42:11]} {[%emt
00:00:02]} 12. Bb5 {[%clk 00:35:59]} {[%emt 00:00:17]} a6 {[%clk 00:40:47]}
{[%emt 00:01:34]} 13. Ba4 {[%clk 00:33:48]} {[%emt 00:02:21]} Bb4 {[%clk
00:34:52]} {[%emt 00:06:06]} 14. Rc1 {[%clk 00:31:11]} {[%emt 00:02:47]} O-O
{[%clk 00:34:03]} {[%emt 00:00:58]} 15. O-O {[%clk 00:31:08]} {[%emt 00:00:13]}
Rfd8 {[%clk 00:32:28]} {[%emt 00:01:45]} 16. a3 {[%clk 00:28:47]} {[%emt
00:02:31]} Bf8 {[%clk 00:31:32]} {[%emt 00:01:06]} 17. Ne2 {[%clk 00:28:14]}
{[%emt 00:00:43]} Rac8 {[%clk 00:28:45]} {[%emt 00:02:56]} 18. Ned4 {[%clk
00:25:54]} {[%emt 00:02:31]} Bg4 {[%clk 00:26:07]} {[%emt 00:02:47]} 19. h3
{[%clk 00:24:23]} {[%emt 00:01:41]} Bxf3 {[%clk 00:23:52]} {[%emt 00:02:25]} 20.
Nxf3 {[%clk 00:24:14]} {[%emt 00:00:19]} d4 {[%clk 00:23:13]} {[%emt 00:00:49]}
21. Bxc6 {[%clk 00:19:02]} {[%emt 00:05:23]} dxe3 {[%clk 00:22:45]} {[%emt
00:00:39]} 22. Qxe3 {[%clk 00:19:06]} {[%emt 00:00:05]} Rxc6 {[%clk 00:21:44]}
{[%emt 00:01:11]} 23. Rxc6 {[%clk 00:16:59]} {[%emt 00:02:17]} Qxc6 {[%clk
00:21:53]} {[%emt 00:00:01]} 24. Rc1 {[%clk 00:16:36]} {[%emt 00:00:33]} Qb5
{[%clk 00:19:52]} {[%emt 00:02:11]} 25. Qc3 {[%clk 00:14:46]} {[%emt 00:01:59]}
Be7 {[%clk 00:18:08]} {[%emt 00:01:54]} 26. b4 {[%clk 00:11:43]} {[%emt
00:03:13]} Bf6 {[%clk 00:16:21]} {[%emt 00:01:57]} 27. Qc7 {[%clk 00:09:25]}
{[%emt 00:02:28]} Rd5 {[%clk 00:11:04]} {[%emt 00:05:27]} 28. Re1 {[%clk
00:06:49]} {[%emt 00:02:46]} Qd7 {[%clk 00:07:22]} {[%emt 00:03:52]} 29. Qxd7
{[%clk 00:03:11]} {[%emt 00:03:48]} Rxd7 {[%clk 00:07:31]} 30. Re8+ {[%clk
00:03:03]} {[%emt 00:00:18]} Kh7 {[%clk 00:07:40]} 31. Kf1 {[%clk 00:01:19]}
{[%emt 00:01:55]} Rd1+ {[%clk 00:06:33]} {[%emt 00:01:17]} 32. Re1 {[%clk
00:00:14]} {[%emt 00:01:15]} Rd3 {[%clk 00:06:42]} 33. Re3 {[%clk 00:00:21]}
{[%emt 00:00:03]} Rxe3 {[%clk 00:06:06]} {[%emt 00:00:45]} 34. fxe3 {[%clk
00:00:30]} {[%emt 00:00:02]} b5 {[%clk 00:06:05]} {[%emt 00:00:12]} 35. Nd4
{[%clk 00:00:25]} {[%emt 00:00:14]} Bxd4 {[%clk 00:03:51]} {[%emt 00:02:24]} 36.
exd4 {[%clk 00:00:34]} Kg6 {[%emt 00:00:02]} 37. Ke2 {[%clk 00:00:14]} {[%emt
00:00:29]} Kf5 {[%clk 00:03:59]} {[%emt 00:00:10]} 38. Kf3 {[%clk 00:00:21]}
{[%emt 00:00:03]} Ke6 {[%clk 00:03:40]} {[%emt 00:00:29]} 39. Ke4 {[%clk
00:00:11]} {[%emt 00:00:20]} f5+ {[%clk 00:03:44]} {[%emt 00:00:06]} 40. Kf4
{[%clk 00:00:11]} {[%emt 00:00:10]} g5+ {[%clk 00:03:38]} {[%emt 00:00:15]} 41.
Ke3 {[%clk 00:00:16]} {[%emt 00:00:06]} Kd5 {[%clk 00:02:30]} {[%emt 00:01:19]}
42. Kd3 {[%clk 00:00:23]} {[%emt 00:00:02]} f4 {[%clk 00:02:16]} {[%emt
00:00:24]} 0-1

[Event "FIDE U16 Olympiad_boards_1-80"]
[Site "Eindhoven, Netherlands"]
[Date "2023.08.14"]
[Round "2.44"]
[White "Kovalskyi, Roman"]
[Black "Mickunaite, Agne"]
[Result "1-0"]
[TimeControl "2700+10"]
[WhiteElo "1989"]
[BlackElo "1681"]

1. e4 {[%clk 00:45:16]} {[%emt 00:00:04]} c5 {[%clk 00:45:19]} 2. Nf3 {[%clk
00:45:24]} {[%emt 00:00:02]} d6 {[%clk 00:45:28]} {[%emt 00:00:01]} 3. d4
{[%clk 00:45:33]} cxd4 {[%clk 00:45:36]} {[%emt 00:00:02]} 4. Nxd4 {[%clk
00:45:41]} {[%emt 00:00:02]} Nf6 {[%clk 00:45:43]} {[%emt 00:00:02]} 5. Nc3
{[%clk 00:45:49]} {[%emt 00:00:01]} g6 {[%clk 00:45:52]} {[%emt 00:00:02]} 6.
Be3 {[%clk 00:45:57]} {[%emt 00:00:02]} Bg7 {[%clk 00:45:58]} {[%emt 00:00:04]}
7. f3 {[%clk 00:46:06]} {[%emt 00:00:01]} a6 {[%clk 00:46:05]} {[%emt
00:00:03]} 8. Qd2 {[%clk 00:46:14]} {[%emt 00:00:02]} h5 {[%clk 00:46:13]}
{[%emt 00:00:02]} 9. Bc4 {[%clk 00:46:22]} {[%emt 00:00:02]} b5 {[%clk
00:45:40]} {[%emt 00:00:43]} 10. Bd5 {[%clk 00:46:01]} {[%emt 00:00:32]} Nxd5
{[%clk 00:45:44]} {[%emt 00:00:06]} 11. Nxd5 {[%clk 00:46:09]} {[%emt
00:00:02]} Bb7 {[%clk 00:45:05]} {[%emt 00:00:49]} 12. O-O-O {[%clk 00:46:14]}
{[%emt 00:00:05]} Nd7 {[%clk 00:44:42]} {[%emt 00:00:33]} 13. Bg5 {[%clk
00:46:20]} {[%emt 00:00:04]} Nf6 {[%clk 00:38:53]} {[%emt 00:05:59]} 14. Nxf6+
{[%clk 00:45:06]} {[%emt 00:01:24]} exf6 {[%clk 00:39:00]} {[%emt 00:00:03]} 15.
Bf4 {[%clk 00:44:32]} {[%emt 00:00:45]} O-O {[%clk 00:36:02]} {[%emt 00:03:07]}
16. Nb3 {[%clk 00:41:13]} {[%emt 00:03:29]} Rc8 {[%clk 00:30:42]} {[%emt
00:05:30]} 17. Qxd6 {[%clk 00:40:05]} {[%emt 00:01:17]} Qxd6 {[%clk 00:29:16]}
{[%emt 00:01:36]} 18. Rxd6 {[%clk 00:40:08]} {[%emt 00:00:08]} g5 {[%clk
00:29:24]} {[%emt 00:00:03]} 19. Be3 {[%clk 00:39:52]} {[%emt 00:00:26]} Rfe8
{[%clk 00:26:18]} {[%emt 00:03:14]} 20. Nd4 {[%clk 00:35:00]} {[%emt 00:05:02]}
Rc7 {[%clk 00:26:02]} {[%emt 00:00:26]} 21. Rd1 {[%clk 00:33:17]} {[%emt
00:01:53]} Rec8 {[%clk 00:25:59]} {[%emt 00:00:12]} 22. Rd2 {[%clk 00:33:08]}
{[%emt 00:00:19]} Bf8 {[%clk 00:18:12]} {[%emt 00:07:58]} 23. Rxf6 {[%clk
00:33:04]} {[%emt 00:00:14]} Bb4 {[%clk 00:16:51]} {[%emt 00:01:31]} 24. Re2
{[%clk 00:32:24]} {[%emt 00:00:50]} Be7 {[%clk 00:16:45]} {[%emt 00:00:15]} 25.
Rh6 {[%clk 00:29:38]} {[%emt 00:02:56]} h4 {[%clk 00:14:09]} {[%emt 00:02:46]}
26. Nf5 {[%clk 00:28:57]} {[%emt 00:00:51]} Bd8 {[%clk 00:13:00]} {[%emt
00:01:18]} 27. Rd2 {[%clk 00:27:59]} {[%emt 00:01:08]} Rc6 {[%clk 00:12:16]}
{[%emt 00:00:54]} 28. Rxc6 {[%clk 00:25:36]} {[%emt 00:02:34]} Bxc6 {[%clk
00:12:22]} {[%emt 00:00:04]} 29. Rxd8+ {[%clk 00:25:43]} {[%emt 00:00:02]} Rxd8
{[%clk 00:12:29]} {[%emt 00:00:04]} 30. Ne7+ {[%clk 00:25:52]} {[%emt
00:00:01]} Kg7 {[%clk 00:12:21]} {[%emt 00:00:18]} 31. Nxc6 {[%clk 00:26:00]}
{[%emt 00:00:02]} f6 {[%clk 00:12:27]} {[%emt 00:00:03]} 32. Nxd8 {[%clk
00:26:08]} {[%emt 00:00:02]} 1-0

[Event "FIDE U16 Olympiad_boards_1-80"]
[Site "Eindhoven, Netherlands"]
[Date "2023.08.14"]
[Round "2.45"]
[White "Hagner, Bennet"]
[Black "Ramaj, Ergit"]
[Result "1-0"]
[TimeControl "2700+10"]
[WhiteElo "2221"]
[BlackElo "2012"]

1. e4 {[%clk 00:45:19]} e5 {[%clk 00:45:19]} 2. Nf3 {[%clk 00:45:28]} {[%emt
00:00:02]} Nc6 {[%clk 00:45:27]} {[%emt 00:00:01]} 3. Bb5 {[%clk 00:45:36]}
{[%emt 00:00:02]} Nf6 {[%clk 00:45:35]} {[%emt 00:00:02]} 4. d3 {[%clk
00:45:44]} {[%emt 00:00:02]} Bc5 {[%clk 00:45:43]} {[%emt 00:00:02]} 5. Bxc6
{[%clk 00:45:49]} {[%emt 00:00:05]} dxc6 {[%clk 00:45:50]} {[%emt 00:00:03]} 6.
Nbd2 {[%clk 00:45:56]} {[%emt 00:00:03]} Be6 {[%clk 00:45:28]} {[%emt
00:00:32]} 7. Qe2 {[%clk 00:44:37]} {[%emt 00:01:29]} Nd7 {[%clk 00:42:52]}
{[%emt 00:02:46]} 8. Nb3 {[%clk 00:44:45]} {[%emt 00:00:02]} Bb6 {[%clk
00:42:20]} {[%emt 00:00:42]} 9. Ng5 {[%clk 00:44:50]} {[%emt 00:00:05]} Qe7
{[%clk 00:42:15]} {[%emt 00:00:16]} 10. O-O {[%clk 00:43:16]} {[%emt 00:01:44]}
O-O-O {[%clk 00:41:58]} {[%emt 00:00:27]} 11. Nxe6 {[%clk 00:42:46]} {[%emt
00:00:40]} Qxe6 {[%clk 00:42:05]} {[%emt 00:00:03]} 12. a4 {[%clk 00:42:55]}
{[%emt 00:00:01]} a6 {[%clk 00:39:46]} {[%emt 00:02:29]} 13. Nd2 {[%clk
00:43:03]} {[%emt 00:00:02]} Bc5 {[%clk 00:38:35]} {[%emt 00:01:21]} 14. Nc4
{[%clk 00:41:06]} {[%emt 00:02:06]} f6 {[%clk 00:37:45]} {[%emt 00:01:01]} 15.
c3 {[%clk 00:33:04]} {[%emt 00:08:12]} Be7 {[%clk 00:31:56]} {[%emt 00:05:58]}
16. b4 {[%clk 00:31:25]} {[%emt 00:01:50]} Nb6 {[%clk 00:28:45]} {[%emt
00:03:20]} 17. Nxb6+ {[%clk 00:26:57]} {[%emt 00:04:38]} cxb6 {[%clk 00:28:51]}
{[%emt 00:00:04]} 18. Be3 {[%clk 00:27:05]} {[%emt 00:00:02]} b5 {[%clk
00:25:37]} {[%emt 00:03:24]} 19. Rfb1 {[%clk 00:20:26]} {[%emt 00:06:49]} bxa4
{[%clk 00:19:37]} {[%emt 00:06:11]} 20. Rxa4 {[%clk 00:19:38]} {[%emt
00:00:57]} Qd7 {[%clk 00:18:30]} {[%emt 00:01:16]} 21. d4 {[%clk 00:17:28]}
{[%emt 00:02:21]} Kb8 {[%clk 00:13:53]} {[%emt 00:04:47]} 22. Ra2 {[%clk
00:16:13]} {[%emt 00:01:25]} Qe6 {[%clk 00:12:31]} {[%emt 00:01:32]} 23. d5
{[%clk 00:12:53]} {[%emt 00:03:30]} cxd5 {[%clk 00:10:37]} {[%emt 00:02:04]} 24.
b5 {[%clk 00:13:02]} {[%emt 00:00:01]} a5 {[%clk 00:08:57]} {[%emt 00:01:50]}
25. Rxa5 {[%clk 00:12:36]} {[%emt 00:00:37]} d4 {[%clk 00:08:55]} {[%emt
00:00:11]} 26. cxd4 {[%clk 00:11:53]} {[%emt 00:00:53]} exd4 {[%clk 00:09:01]}
{[%emt 00:00:04]} 27. Bf4+ {[%clk 00:10:53]} {[%emt 00:01:10]} Bd6 {[%clk
00:09:04]} {[%emt 00:00:08]} 28. Rba1 {[%clk 00:08:05]} {[%emt 00:02:58]} Kc8
{[%clk 00:06:06]} {[%emt 00:03:07]} 29. Bxd6 {[%clk 00:07:30]} {[%emt
00:00:45]} Qxd6 {[%clk 00:06:01]} {[%emt 00:00:15]} 30. b6 {[%clk 00:05:17]}
{[%emt 00:02:23]} Qe6 {[%clk 00:00:55]} {[%emt 00:05:17]} 31. Qb5 {[%clk
00:04:56]} {[%emt 00:00:30]} Qc6 {[%clk 00:00:17]} {[%emt 00:00:47]} 32. Qf5+
{[%clk 00:05:04]} {[%emt 00:00:02]} 1-0

[Event "FIDE U16 Olympiad_boards_1-80"]
[Site "Eindhoven, Netherlands"]
[Date "2023.08.14"]
[Round "2.46"]
[White "Kosta, Kelvin"]
[Black "Ermitsch, Magnus"]
[Result "1-0"]
[TimeControl "2700+10"]
[WhiteElo "1931"]
[BlackElo "2297"]

1. e4 {[%clk 00:45:17]} {[%emt 00:00:03]} c5 {[%clk 00:45:13]} {[%emt
00:00:07]} 2. Nf3 {[%clk 00:45:24]} {[%emt 00:00:03]} e6 {[%clk 00:45:10]}
{[%emt 00:00:13]} 3. d4 {[%clk 00:45:28]} {[%emt 00:00:06]} cxd4 {[%clk
00:45:18]} {[%emt 00:00:02]} 4. Nxd4 {[%clk 00:45:36]} {[%emt 00:00:02]} Nc6
{[%clk 00:45:26]} {[%emt 00:00:02]} 5. Nc3 {[%clk 00:45:37]} {[%emt 00:00:08]}
Qc7 {[%clk 00:45:33]} {[%emt 00:00:03]} 6. Be3 {[%clk 00:45:37]} {[%emt
00:00:10]} a6 {[%clk 00:45:32]} {[%emt 00:00:11]} 7. Be2 {[%clk 00:45:29]}
{[%emt 00:00:18]} Nf6 {[%clk 00:45:31]} {[%emt 00:00:11]} 8. O-O {[%clk
00:45:02]} {[%emt 00:00:38]} Be7 {[%clk 00:45:29]} {[%emt 00:00:11]} 9. Kh1
{[%clk 00:41:59]} {[%emt 00:03:14]} O-O {[%clk 00:45:09]} {[%emt 00:00:29]} 10.
f4 {[%clk 00:40:33]} {[%emt 00:01:37]} d6 {[%clk 00:45:17]} {[%emt 00:00:02]}
11. h3 {[%clk 00:39:29]} {[%emt 00:01:14]} Bd7 {[%clk 00:43:06]} {[%emt
00:02:20]} 12. Qe1 {[%clk 00:37:10]} {[%emt 00:02:29]} Nxd4 {[%clk 00:42:41]}
{[%emt 00:00:35]} 13. Bxd4 {[%clk 00:37:13]} {[%emt 00:00:07]} b5 {[%clk
00:41:57]} {[%emt 00:00:54]} 14. Bd3 {[%clk 00:35:06]} {[%emt 00:02:17]} Bc6
{[%clk 00:40:02]} {[%emt 00:02:06]} 15. e5 {[%clk 00:29:25]} {[%emt 00:05:51]}
dxe5 {[%clk 00:39:09]} {[%emt 00:01:03]} 16. fxe5 {[%clk 00:27:12]} {[%emt
00:02:23]} Nd5 {[%clk 00:33:19]} {[%emt 00:05:59]} 17. Ne4 {[%clk 00:25:09]}
{[%emt 00:02:13]} Rad8 {[%clk 00:18:08]} {[%emt 00:15:22]} 18. Qf2 {[%clk
00:18:06]} {[%emt 00:07:13]} f5 {[%clk 00:12:28]} {[%emt 00:05:50]} 19. Nd6
{[%clk 00:12:47]} {[%emt 00:05:28]} Rd7 {[%clk 00:08:10]} {[%emt 00:04:28]} 20.
Bxf5 {[%clk 00:10:06]} {[%emt 00:02:52]} exf5 {[%clk 00:07:17]} {[%emt
00:01:03]} 21. Nxf5 {[%clk 00:10:11]} {[%emt 00:00:05]} Rdd8 {[%clk 00:05:59]}
{[%emt 00:01:28]} 22. Qg3 {[%clk 00:09:47]} {[%emt 00:00:34]} Bb4 {[%clk
00:03:57]} {[%emt 00:02:12]} 23. Qg4 {[%clk 00:07:38]} {[%emt 00:02:19]} Be8
{[%clk 00:01:41]} {[%emt 00:02:26]} 24. c3 {[%clk 00:06:46]} {[%emt 00:01:02]}
Bg6 {[%clk 00:00:47]} {[%emt 00:01:04]} 25. cxb4 {[%clk 00:06:15]} {[%emt
00:00:42]} Nxb4 {[%clk 00:00:39]} {[%emt 00:00:17]} 26. Nd6 {[%clk 00:05:22]}
{[%emt 00:01:02]} Nc2 {[%clk 00:00:32]} {[%emt 00:00:18]} 27. Bb6 {[%clk
00:04:36]} {[%emt 00:00:56]} Qxb6 {[%clk 00:00:17]} {[%emt 00:00:25]} 28. Qe6+
{[%clk 00:04:45]} {[%emt 00:00:01]} Bf7 {[%clk 00:00:12]} {[%emt 00:00:16]} 29.
Rxf7 {[%clk 00:04:31]} {[%emt 00:00:23]} Rxf7 {[%clk 00:00:11]} {[%emt
00:00:11]} 30. Rf1 {[%clk 00:03:42]} {[%emt 00:00:59]} Qb8 {[%clk 00:00:11]}
{[%emt 00:00:10]} 31. Nxf7 {[%clk 00:03:10]} {[%emt 00:00:42]} Re8 {[%clk
00:00:14]} {[%emt 00:00:07]} 32. Nh6+ {[%clk 00:03:17]} {[%emt 00:00:04]} 1-0

[Event "FIDE U16 Olympiad_boards_1-80"]
[Site "Eindhoven, Netherlands"]
[Date "2023.08.14"]
[Round "2.47"]
[White "Peglau, Dora"]
[Black "Boci, Mateo"]
[Result "0-1"]
[TimeControl "2700+10"]
[WhiteElo "1861"]
[BlackElo "1944"]

1. d4 {[%clk 00:45:17]} {[%emt 00:00:02]} Nf6 {[%clk 00:45:15]} {[%emt
00:00:06]} 2. c4 {[%clk 00:45:24]} {[%emt 00:00:03]} e6 {[%clk 00:45:22]}
{[%emt 00:00:02]} 3. Nf3 {[%clk 00:45:31]} {[%emt 00:00:04]} b6 {[%clk
00:45:26]} {[%emt 00:00:06]} 4. Nc3 {[%clk 00:45:36]} {[%emt 00:00:05]} Bb4
{[%clk 00:45:26]} {[%emt 00:00:10]} 5. Qb3 {[%clk 00:45:04]} {[%emt 00:00:42]}
Bxc3+ {[%clk 00:45:06]} {[%emt 00:00:30]} 6. Qxc3 {[%clk 00:45:11]} {[%emt
00:00:02]} O-O {[%clk 00:45:01]} {[%emt 00:00:15]} 7. g3 {[%clk 00:45:05]}
{[%emt 00:00:17]} Bb7 {[%clk 00:44:55]} {[%emt 00:00:15]} 8. Bg2 {[%clk
00:45:12]} {[%emt 00:00:04]} d6 {[%clk 00:44:36]} {[%emt 00:00:30]} 9. O-O
{[%clk 00:45:05]} {[%emt 00:00:16]} Ne4 {[%clk 00:44:25]} {[%emt 00:00:21]} 10.
Qc2 {[%clk 00:45:01]} {[%emt 00:00:14]} Qc8 {[%clk 00:41:45]} {[%emt 00:02:50]}
11. Nd2 {[%clk 00:41:12]} {[%emt 00:03:59]} Nxd2 {[%clk 00:41:35]} {[%emt
00:00:21]} 12. Bxd2 {[%clk 00:41:19]} {[%emt 00:00:02]} Bxg2 {[%clk 00:39:05]}
{[%emt 00:02:40]} 13. Kxg2 {[%clk 00:41:27]} {[%emt 00:00:02]} Nd7 {[%clk
00:39:05]} {[%emt 00:00:10]} 14. e4 {[%clk 00:39:15]} {[%emt 00:02:22]} e5
{[%clk 00:38:36]} {[%emt 00:00:39]} 15. d5 {[%clk 00:38:01]} {[%emt 00:01:24]}
a5 {[%clk 00:38:20]} {[%emt 00:00:26]} 16. b3 {[%clk 00:37:43]} {[%emt
00:00:28]} Nc5 {[%clk 00:38:12]} {[%emt 00:00:18]} 17. a3 {[%clk 00:37:16]}
{[%emt 00:00:38]} a4 {[%clk 00:38:14]} {[%emt 00:00:08]} 18. b4 {[%clk
00:37:02]} {[%emt 00:00:24]} Nb3 {[%clk 00:38:19]} {[%emt 00:00:04]} 19. Rac1
{[%clk 00:37:00]} {[%emt 00:00:11]} Nxc1 {[%clk 00:38:11]} {[%emt 00:00:18]} 20.
Rxc1 {[%clk 00:37:08]} {[%emt 00:00:02]} f5 {[%clk 00:37:09]} {[%emt 00:01:13]}
21. exf5 {[%clk 00:36:58]} {[%emt 00:00:20]} Rxf5 {[%clk 00:37:03]} {[%emt
00:00:15]} 22. c5 {[%clk 00:36:12]} {[%emt 00:00:57]} bxc5 {[%emt 00:04:28]} 23.
bxc5 {[%clk 00:36:21]} Qf8 {[%clk 00:32:46]} {[%emt 00:00:09]} 24. Bb4 {[%clk
00:36:14]} {[%emt 00:00:18]} Qf7 {[%clk 00:32:05]} {[%emt 00:00:50]} 25. Rd1
{[%clk 00:34:04]} {[%emt 00:02:20]} Rf8 {[%clk 00:29:16]} {[%emt 00:02:59]} 26.
Rd2 {[%clk 00:33:08]} {[%emt 00:01:06]} Qf6 {[%clk 00:26:07]} {[%emt 00:03:19]}
27. Ba5 {[%clk 00:32:12]} {[%emt 00:01:06]} Qf7 {[%clk 00:18:21]} {[%emt
00:07:56]} 28. Bb4 {[%clk 00:32:05]} {[%emt 00:00:17]} Rh5 {[%clk 00:17:25]}
{[%emt 00:01:06]} 29. cxd6 {[%clk 00:30:30]} {[%emt 00:01:45]} Qf3+ {[%clk
00:16:36]} {[%emt 00:00:59]} 30. Kg1 {[%clk 00:30:39]} {[%emt 00:00:02]} Rxh2
{[%clk 00:16:10]} {[%emt 00:00:35]} 31. Kxh2 {[%clk 00:30:27]} {[%emt
00:00:22]} Rf6 {[%clk 00:16:13]} {[%emt 00:00:05]} 32. Qc4 {[%clk 00:27:45]}
{[%emt 00:02:54]} Rh6+ {[%clk 00:15:41]} {[%emt 00:00:43]} 33. Qh4 {[%clk
00:27:51]} {[%emt 00:00:03]} Rxh4+ {[%clk 00:15:49]} {[%emt 00:00:01]} 34. gxh4
{[%clk 00:28:00]} {[%emt 00:00:02]} cxd6 {[%clk 00:15:55]} {[%emt 00:00:04]} 35.
Kg1 {[%clk 00:25:21]} {[%emt 00:02:49]} Qf4 {[%clk 00:12:18]} {[%emt 00:03:48]}
36. Kf1 {[%clk 00:24:54]} {[%emt 00:00:36]} Kf7 {[%clk 00:11:47]} {[%emt
00:00:39]} 37. h5 {[%clk 00:23:40]} {[%emt 00:01:25]} e4 {[%clk 00:11:34]}
{[%emt 00:00:23]} 38. Rc2 {[%clk 00:21:23]} {[%emt 00:02:28]} Qe5 {[%clk
00:10:37]} {[%emt 00:01:07]} 39. Rc7+ {[%clk 00:20:42]} {[%emt 00:00:51]} Ke8
{[%clk 00:10:27]} {[%emt 00:00:17]} 40. h6 {[%clk 00:19:36]} {[%emt 00:01:19]}
gxh6 {[%clk 00:10:04]} {[%emt 00:00:33]} 41. Rxh7 {[%clk 00:19:34]} {[%emt
00:00:12]} Qxd5 {[%clk 00:07:57]} {[%emt 00:02:17]} 42. Rxh6 {[%clk 00:18:34]}
{[%emt 00:01:10]} Qd1+ {[%clk 00:08:04]} {[%emt 00:00:02]} 43. Kg2 {[%clk
00:18:03]} {[%emt 00:00:42]} Qg4+ {[%clk 00:08:10]} {[%emt 00:00:04]} 44. Kf1
{[%clk 00:18:03]} {[%emt 00:00:09]} d5 {[%clk 00:08:15]} {[%emt 00:00:05]} 45.
Rd6 {[%clk 00:17:22]} {[%emt 00:00:52]} Qd1+ {[%clk 00:07:48]} {[%emt
00:00:37]} 46. Kg2 {[%clk 00:17:25]} {[%emt 00:00:06]} Qf3+ {[%clk 00:07:52]}
{[%emt 00:00:06]} 47. Kf1 {[%clk 00:17:24]} {[%emt 00:00:11]} Qd3+ {[%clk
00:07:36]} {[%emt 00:00:27]} 48. Kg2 {[%clk 00:15:56]} {[%emt 00:01:38]} d4
{[%clk 00:07:32]} {[%emt 00:00:14]} 49. Bc5 {[%clk 00:14:40]} {[%emt 00:01:26]}
Qf3+ {[%clk 00:07:35]} {[%emt 00:00:07]} 50. Kg1 {[%clk 00:14:33]} {[%emt
00:00:17]} d3 {[%clk 00:07:25]} {[%emt 00:00:20]} 51. Be3 {[%clk 00:14:09]}
{[%emt 00:00:34]} Qd1+ {[%clk 00:07:01]} {[%emt 00:00:34]} 52. Kg2 {[%clk
00:14:12]} {[%emt 00:00:06]} Ke7 {[%clk 00:06:28]} {[%emt 00:00:44]} 53. Rd4
{[%clk 00:14:16]} {[%emt 00:00:06]} Qf3+ {[%clk 00:06:21]} {[%emt 00:00:17]} 54.
Kh2 {[%clk 00:13:43]} {[%emt 00:00:43]} Ke6 {[%clk 00:05:40]} {[%emt 00:00:52]}
55. Rxa4 {[%clk 00:13:29]} {[%emt 00:00:23]} d2 {[%clk 00:05:32]} {[%emt
00:00:17]} 56. Bxd2 {[%clk 00:10:52]} {[%emt 00:02:48]} Qxf2+ {[%clk 00:05:40]}
{[%emt 00:00:02]} 57. Kh3 {[%clk 00:10:34]} {[%emt 00:00:28]} Qxd2 {[%clk
00:05:44]} {[%emt 00:00:06]} 58. Rxe4+ {[%clk 00:10:32]} {[%emt 00:00:12]} Kf5
{[%clk 00:05:50]} {[%emt 00:00:03]} 59. Rb4 {[%clk 00:08:24]} {[%emt 00:02:19]}
Qc3+ {[%clk 00:05:46]} {[%emt 00:00:13]} 60. Kh4 {[%clk 00:06:51]} {[%emt
00:01:44]} Qxa3 {[%emt 00:00:36]} 61. Rg4 {[%clk 00:06:35]} Qe7+ {[%clk
00:05:43]} {[%emt 00:00:13]} 62. Kh3 {[%clk 00:05:58]} {[%emt 00:00:46]} Qe1
{[%clk 00:05:22]} {[%emt 00:00:32]} 63. Rg2 {[%clk 00:04:57]} {[%emt 00:01:12]}
Kf4 {[%clk 00:04:58]} {[%emt 00:00:32]} 64. Rf2+ {[%clk 00:03:30]} {[%emt
00:01:38]} Ke3 {[%clk 00:04:41]} {[%emt 00:00:27]} 65. Rf6 {[%clk 00:03:02]}
{[%emt 00:00:38]} Qc3 {[%clk 00:04:08]} {[%emt 00:00:44]} 66. Rg6 {[%clk
00:02:28]} {[%emt 00:00:44]} Kf4+ {[%clk 00:04:00]} {[%emt 00:00:17]} 0-1